Workbook

Sheet InputOutput
A1: INPUTS | G1: DESCRIPTION AND ASSUMPTIONS | P1: PROCESS FLOW DIAGRAM
A2: Annual Incoming Tonnes | B2: 27433 | G2: =VLOOKUP(B4,Sheet1!A21:B26,2,FALSE) -> Picture 5 | O2: =VLOOKUP(B3,Sheet1!A28:B29,2,FALSE()) -> Picture 8
A3: Number of Streams | B3: Single
A4: Classification | B4: =IF(AND(B2<20000,B3="Single"),"Single Stream Small",IF(AND(B2>20000,B2<105000,B3="Single"),"Single Stream Medium",IF(AND(B2>105000,B3="Single"),"Single Stream Large",IF(AND(B2<10000,B3="Dual"),"Dual Stream Small",IF(AND(B2>10000,B2<65000,B3="Dual"),"Dual Stream Medium","Dual Stream Large"))))) -> Single Stream Medium
A6: Can Be Supported By:
A7: Large Urban | B7: =IF($B$2<E7,"a","") -> a | E7: 426542.74
A8: Urban Regional | B8: =IF($B$2<E8,"a","") -> a | E8: 229743.24
A9: Medium Urban | B9: a | E9: 51230.33511
A10: Small Urban | E10: 25910.56971
A11: Rural Regional | B11: a | E11: 96390.61955
A12: Rural Collection - North | E12: 9942.013744
A13: Rural Collection South | B13: a | E13: 38299.41524
A14: Rural Depot North | E14: 6048.466868
A15: Rural Depot South | E15: 8816.987948
A17: Building amortization period | B17: 20
A18: Equipment amortization period | B18: 10
A19: Rolling stock amortizaiton period | B19: 8
A20: Interest Rate | B20: 0.04
A26: OUTPUTS
A27: Annual Building Cost | B27: =IF($B$4="Single Stream Small",$B$2*'Lookup Matrix'!B16,IF($B$4="Single Stream Medium",$B$2*'Lookup Matrix'!D16,IF($B$4="Single Stream Large",$B$2*'Lookup Matrix'!F16,IF($B$4="Dual Stream Small",$B$2*'Lookup Matrix'!C16,IF($B$4="Dual Stream Medium",$B$2*'Lookup Matrix'!E16,$B$2*'Lookup Matrix'!G16))))) -> 227162.9419
A28: Annual Equipment Cost | B28: =IF($B$4="Single Stream Small",$B$2*'Lookup Matrix'!B17,IF($B$4="Single Stream Medium",$B$2*'Lookup Matrix'!D17,IF($B$4="Single Stream Large",$B$2*'Lookup Matrix'!F17,IF($B$4="Dual Stream Small",$B$2*'Lookup Matrix'!C17,IF($B$4="Dual Stream Medium",$B$2*'Lookup Matrix'!E17,$B$2*'Lookup Matrix'!G17))))) -> 673072.8
A29: Annual Rolling Stock | B29: =IF($B$4="Single Stream Small",$B$2*'Lookup Matrix'!B18,IF($B$4="Single Stream Medium",$B$2*'Lookup Matrix'!D18,IF($B$4="Single Stream Large",$B$2*'Lookup Matrix'!F18,IF($B$4="Dual Stream Small",$B$2*'Lookup Matrix'!C18,IF($B$4="Dual Stream Medium",$B$2*'Lookup Matrix'!E18,$B$2*'Lookup Matrix'!G18))))) -> 27050.31537
A30: Annual Labor Cost | B30: =SUM('MRF Labor Requirements'!G25:G30) -> 950400
A31: Annual Building OM Cost | B31: =IF($B$4="Single Stream Small",$B$2*'Lookup Matrix'!B20,IF($B$4="Single Stream Medium",$B$2*'Lookup Matrix'!D20,IF($B$4="Single Stream Large",$B$2*'Lookup Matrix'!F20,IF($B$4="Dual Stream Small",$B$2*'Lookup Matrix'!C20,IF($B$4="Dual Stream Medium",$B$2*'Lookup Matrix'!E20,$B$2*'Lookup Matrix'!G20))))) -> 151717.1226
A32: Annual Building Insurance Cost | B32: =IF($B$4="Single Stream Small",$B$2*'Lookup Matrix'!B21,IF($B$4="Single Stream Medium",$B$2*'Lookup Matrix'!D21,IF($B$4="Single Stream Large",$B$2*'Lookup Matrix'!F21,IF($B$4="Dual Stream Small",$B$2*'Lookup Matrix'!C21,IF($B$4="Dual Stream Medium",$B$2*'Lookup Matrix'!E21,$B$2*'Lookup Matrix'!G21))))) -> 10533.32821
A33: Annual Taxes | B33: =IF($B$4="Single Stream Small",$B$2*'Lookup Matrix'!B22,IF($B$4="Single Stream Medium",$B$2*'Lookup Matrix'!D22,IF($B$4="Single Stream Large",$B$2*'Lookup Matrix'!F22,IF($B$4="Dual Stream Small",$B$2*'Lookup Matrix'!C22,IF($B$4="Dual Stream Medium",$B$2*'Lookup Matrix'!E22,$B$2*'Lookup Matrix'!G22))))) -> 124171.0863
A34: Annual Residual Disposal Cost | B34: =IF($B$4="Single Stream Small",$B$2*'Lookup Matrix'!B23,IF($B$4="Single Stream Medium",$B$2*'Lookup Matrix'!D23,IF($B$4="Single Stream Large",$B$2*'Lookup Matrix'!F23,IF($B$4="Dual Stream Small",$B$2*'Lookup Matrix'!C23,IF($B$4="Dual Stream Medium",$B$2*'Lookup Matrix'!E23,$B$2*'Lookup Matrix'!G23))))) -> 153625.432
A35: Annual Total Cost | B35: =SUM(B27:B34) -> 2317733.026
A36: Cost Per Tonne | B36: =B35/B2 -> 84.48704212
A43: COST CURVES

Sheet Densities
A1: Materials (Managed) | B1: Density of Material (pre sorting)
A3: Newsprint - CNA/OCNA | B3: 182
A4: Newsprint - Non-CNA/OCNA | B4: 182
A5: Magazines and Catalogues | B5: 182
A6: Telephone Books | B6: 206
A7: Other Printed Paper | B7: 206
A9: Corrugated Cardboard | B9: 95
A10: Boxboard | B10: 95
A11: Gable Top Cartons | B11: 55
A12: Paper Laminates | B12: 55
A13: Aseptic Containers | B13: 55
A15: PET Bottles | B15: 28
A16: HDPE Bottles | B16: 28
A17: Plastic Film | B17: 29
A18: Plastic Laminates | B18: 29
A19: Polystyrene | B19: 29
A20: Other Plastics | B20: 29
A22: Steel Food & Beverage Cans | B22: 87
A23: Steel Aerosols | B23: 87
A24: Steel Paint Cans | B24: 87
A26: Aluminum Food & Beverage Cans | B26: 34
A27: Other Aluminum Packaging | B27: 34
A29: Clear Glass | B29: 500
A30: Coloured Glass | B30: 500

Sheet Definition of Sorting (hidden)
A1: Materials (Managed) | B1: Sort Stream | C1: Material Residues | E1: Is Material Negatively Sorted? | K1: 1 | L1: Yes
C2: Manually | D2: By Machine | K2: 2 | L2: No
A3: Newsprint - CNA/OCNA
A4: Newsprint - Non-CNA/OCNA
A5: Magazines and Catalogues
A6: Telephone Books
A7: Other Printed Paper
A9: Corrugated Cardboard
A10: Boxboard
A11: Gable Top Cartons
A12: Paper Laminates
A13: Aseptic Containers
A15: PET Bottles
A16: HDPE Bottles
A17: Plastic Film
A18: Plastic Laminates
A19: Polystyrene
A20: Other Plastics
A22: Steel Food & Beverage Cans
A23: Steel Aerosols
A24: Steel Paint Cans
A26: Aluminum Food & Beverage Cans
A27: Other Aluminum Packaging
A29: Clear Glass
A30: Coloured Glass

Sheet Sorter Allocation (hidden)
C1: SECONDARY SORT | Z1: Total Sorters Allocated
A2: PRIMARY SORT | B2: Number of Sorters | C2: Sorter
C3: 1 | D3: 2 | E3: 3 | F3: 4 | G3: 5 | H3: 6 | I3: 7 | J3: 8 | K3: 9 | L3: 10 | M3: 11 | N3: 12 | O3: 13 | P3: 14 | Q3: 15 | R3: 16 | S3: 17 | T3: 18 | U3: 19 | V3: 20 | W3: 21 | X3: 22 | Y3: 23
B4: Materials Managed | C4: Newsprint - CNA/OCNA | D4: Newsprint - Non-CNA/OCNA | E4: Magazines and Catalogues | F4: Telephone Books | G4: Other Printed Paper | H4: Corrugated Cardboard | I4: Boxboard | J4: Gable Top Cartons | K4: Paper Laminates | L4: Aseptic Containers | M4: PET Bottles | N4: HDPE Bottles | O4: Plastic Film | P4: Plastic Laminates | Q4: Polystyrene | R4: Other Plastics | S4: Steel Food & Beverage Cans | T4: Steel Aerosols | U4: Steel Paint Cans | V4: Aluminum Food & Beverage Cans | W4: Other Aluminum Packaging | X4: Clear Glass | Y4: Coloured Glass
B5: Newsprint - CNA/OCNA
B6: Newsprint - Non-CNA/OCNA
B7: Magazines and Catalogues
B8: Telephone Books
B9: Other Printed Paper
B11: Corrugated Cardboard
B12: Boxboard
B13: Gable Top Cartons
B14: Paper Laminates
B15: Aseptic Containers
B17: PET Bottles
B18: HDPE Bottles
B19: Plastic Film
B20: Plastic Laminates
B21: Polystyrene
B22: Other Plastics
B24: Steel Food & Beverage Cans
B25: Steel Aerosols
B26: Steel Paint Cans
B28: Aluminum Food & Beverage Cans
B29: Other Aluminum Packaging
B31: Clear Glass
B32: Coloured Glass

Sheet Allocation of Equipment To Mat (hidden)
A1: Materials managed | B1: PIECE OF EQUIPMENT | O1: Total Sorters Allocated
A2: Name of Sorting Station | B2: Equipment
B3: 1 | C3: 2 | D3: 3 | E3: 4 | F3: 5 | G3: 6 | H3: 7 | I3: 8 | J3: 9 | K3: 10 | L3: 11 | M3: 12 | N3: 13
B4: Conveyor Belt | C4: Magnet | D4: Eddy Current | E4: Optical Sorter | F4: Trommel | G4: Vibrating Screen | H4: Air Knife | I4: Ballistic Seperator | J4: Vertical Baler | K4: 2 Ram Baler | L4: 1 Ram Baler | M4: Plastic Granulator | N4: Glass Crusher
A5: Newsprint - CNA/OCNA
A6: Newsprint - Non-CNA/OCNA
A7: Magazines and Catalogues
A8: Telephone Books
A9: Other Printed Paper
A11: Corrugated Cardboard
A12: Boxboard
A13: Gable Top Cartons
A14: Paper Laminates
A15: Aseptic Containers
A17: PET Bottles
A18: HDPE Bottles
A19: Plastic Film
A20: Plastic Laminates
A21: Polystyrene
A22: Other Plastics
A24: Steel Food & Beverage Cans
A25: Steel Aerosols
A26: Steel Paint Cans
A28: Aluminum Food & Beverage Cans
A29: Other Aluminum Packaging
A31: Clear Glass
A32: Coloured Glass

Sheet Benchmark Sorting Rate
B1: Benchmark (Standard sorting Rate) kg per hour)
A2: Materials Managed | B2: Sorters | C2: Machines
A3: Newsprint - CNA/OCNA | B3: 440 | C3: 925
A4: Newsprint - Non-CNA/OCNA | B4: 495 | C4: 925
A5: Magazines and Catalogues | B5: 220 | C5: 880
A6: Telephone Books | B6: 220 | C6: 550
A7: Other Printed Paper | B7: 260 | C7: 710
A9: Corrugated Cardboard | B9: 400 | C9: 400
A10: Boxboard | B10: 300 | C10: 300
A11: Gable Top Cartons | B11: 50 | C11: 270
A12: Paper Laminates | B12: 50 | C12: 270
A13: Aseptic Containers | B13: 50 | C13: 270
A15: PET Bottles | B15: 100 | C15: 400
A16: HDPE Bottles | B16: 140 | C16: 420
A17: Plastic Film | B17: 25 | C17: 50
A18: Plastic Laminates | B18: 0 | C18: 0
A19: Polystyrene | B19: 40 | C19: 60
A20: Other Plastics | B20: 60 | C20: 120
A22: Steel Food & Beverage Cans | B22: Magnet | C22: 750
A23: Steel Aerosols | B23: Magnet | C23: 750
A24: Steel Paint Cans | B24: Magnet | C24: 750
A26: Aluminum Food & Beverage Cans | B26: 250 | C26: 600
A27: Other Aluminum Packaging | B27: 250 | C27: 600
A29: Clear Glass | B29: 380 | C29: 490
A30: Coloured Glass | B30: 200 | C30: 525

Sheet Construction 200T
A1: Item | B1: $/unit | C1: $/unit | D1: # of Units | E1: Cost
A2: Site work | B2: 4.5 | C2: =B2*$F$2 -> 7.3584 | D2: 45000 | E2: =C2*D2 -> 331128 | F2: 1.6352
A4: Fencing | B4: 12 | C4: =B4*$F$2 -> 19.6224 | D4: 3000 | E4: =C4*D4 -> 58867.2
A6: Landscaping | E6: =25000*F2 -> 40880
A8: Formwork
A9: -Expansion Joints | B9: 2.5 | C9: =B9*$F$2 -> 4.088 | D9: 1500 | E9: =C9*D9 -> 6132
A10: -Braces | B10: 8.7 | C10: =B10*$F$2 -> 14.22624 | D10: 50 | E10: =C10*D10 -> 711.312
A11: -Barchairs | B11: 0.285 | C11: =B11*$F$2 -> 0.466032 | D11: 43000 | E11: =C11*D11 -> 20039.376
A12: -r/f for footings | B12: 1200 | C12: =B12*$F$2 -> 1962.24 | D12: 2 | E12: =C12*D12 -> 3924.48
A14: Concrete
A15: -slab | B15: 50 | C15: =B15*$F$2 -> 81.76 | D15: 1593 | E15: =C15*D15 -> 130243.68
A16: -Footings | B16: 190 | C16: =B16*$F$2 -> 310.688 | D16: 50 | E16: =C16*D16 -> 15534.4
A17: -Floor Hardner | B17: 0.8 | C17: =B17*$F$2 -> 1.30816 | D17: 43000 | E17: 56250.88
A18: -Loading Docts | B18: 100 | C18: =B18*$F$2 -> 163.52 | D18: 75 | E18: 12264
A19: -Curing | B19: 0.15 | C19: =B19*$F$2 -> 0.24528 | D19: 1718 | E19: 421.39104
A21: Roof and Siding Including Framework | B21: 11 | C21: =B21*$F$2 -> 17.9872 | D21: 43000 | E21: 773449.6
A23: Metal Fabrications
A24: -Stairs | B24: 200 | C24: =B24*$F$2 -> 327.04 | D24: 40 | E24: =C24*D24 -> 13081.6
A25: -Railing | B25: 25 | C25: =B25*$F$2 -> 40.88 | D25: 300 | E25: 12264
A26: -Steel Deck | B26: 5 | C26: =B26*$F$2 -> 8.176 | D26: 800 | E26: 6540.8
A27: -Doors | B27: 5000 | C27: =B27*$F$2 -> 8176 | D27: 6 | E27: 49056
A29: Electrical | B29: 5 | C29: =B29*$F$2 -> 8.176 | D29: 43000 | E29: 351568
A31: Offices and Sorting Room | B31: 25 | C31: =B31*$F$2 -> 40.88 | D31: 4000 | E31: 163520
A33: Pavement | B33: 10 | C33: =B33*$F$2 -> 16.352 | D33: 13333 | E33: 218021.216
A35: Storage area netting | B35: 2 | C35: =B35*$F$2 -> 3.2704 | D35: 167 | E35: 546.1568
A37: Scale house | B37: 20000 | C37: =B37*$F$2 -> 32704 | D37: 1 | E37: 32704
A39: Painting | B39: 0.5 | C39: =B39*$F$2 -> 0.8176 | D39: 64000 | E39: 52326.4
A41: Fire Protection | E41: =8000*F2 -> 13081.6
A43: Security Gates | B43: 2500 | C43: =B43*$F$2 -> 4088 | D43: 2 | E43: =C43*D43 -> 8176
D45: Total Cost: | E45: =SUM(E2:E44) -> 2370732.092
D46: Total Cost ($/sq ft) | E46: =(E45/D2)*10.7639 -> 567.0738481
D47: $/TPD | E47: =E45/(200*'MRF Labor Requirements'!B20) -> 53.88027481

Sheet Construction 600T
A1: Item | B1: $/unit | C1: $/unit | D1: # of Units | E1: Cost
A2: Site work | B2: 4.5 | C2: =B2*$F$2 -> 7.3584 | D2: 72000 | E2: =C2*D2 -> 529804.8 | F2: 1.6352
A4: Fencing | B4: 12 | C4: =B4*$F$2 -> 19.6224 | D4: 5000 | E4: =C4*D4 -> 98112
A6: Landscaping | E6: =25000*F2 -> 40880
A8: Formwork
A9: -Expansion Joints | B9: 2.5 | C9: =B9*$F$2 -> 4.088 | D9: 200 | E9: =C9*D9 -> 817.6
A10: -Braces | B10: 8.7 | C10: =B10*$F$2 -> 14.22624 | D10: 70 | E10: =C10*D10 -> 995.8368
A11: -Barchairs | B11: 0.285 | C11: =B11*$F$2 -> 0.466032 | D11: 72000 | E11: =C11*D11 -> 33554.304
A12: -r/f for footings | B12: 1200 | C12: =B12*$F$2 -> 1962.24 | D12: 3 | E12: =C12*D12 -> 5886.72
A14: Concrete
A15: -slab | B15: 50 | C15: =B15*$F$2 -> 81.76 | D15: 2667 | E15: =C15*D15 -> 218053.92
A16: -Footings | B16: 190 | C16: =B16*$F$2 -> 310.688 | D16: 70 | E16: =C16*D16 -> 21748.16
A17: -Floor Hardner | B17: 0.8 | C17: =B17*$F$2 -> 1.30816 | D17: 72000 | E17: 94187.52
A18: -Loading Docts | B18: 100 | C18: =B18*$F$2 -> 163.52 | D18: 120 | E18: 19622.4
A19: -Curing | B19: 0.15 | C19: =B19*$F$2 -> 0.24528 | D19: 2857 | E19: 700.76496
A21: Roof and Siding Including Framework | B21: 11 | C21: =B21*$F$2 -> 17.9872 | D21: 75000 | E21: 1349040
A23: Metal Fabrications
A24: -Stairs | B24: 200 | C24: =B24*$F$2 -> 327.04 | D24: 25 | E24: =C24*D24 -> 8176
A25: -Railing | B25: 25 | C25: =B25*$F$2 -> 40.88 | D25: 650 | E25: 26572
A26: -Steel Deck | B26: 5 | C26: =B26*$F$2 -> 8.176 | D26: 450 | E26: 3679.2
A27: -Doors | B27: 5000 | C27: =B27*$F$2 -> 8176 | D27: 10 | E27: 81760
A29: Electrical | B29: 5 | C29: =B29*$F$2 -> 8.176 | D29: 72000 | E29: 588672
A31: Offices and Sorting Room | B31: 25 | C31: =B31*$F$2 -> 40.88 | D31: 10000 | E31: 408800
A33: Pavement | B33: 10 | C33: =B33*$F$2 -> 16.352 | D33: 38889 | E33: 635912.928
A35: Storage area netting | B35: 2 | C35: =B35*$F$2 -> 3.2704 | D35: 1000 | E35: 3270.4
A37: Scale house | B37: 15000 | C37: =B37*$F$2 -> 24528 | D37: 1 | E37: 24528
A39: Painting | B39: 0.5 | C39: =B39*$F$2 -> 0.8176 | D39: 100000 | E39: 81760
A41: Fire Protection | E41: =8000*F2 -> 13081.6
A43: Security Gates | B43: 2500 | C43: =B43*$F$2 -> 4088 | D43: 2 | E43: =C43*D43 -> 8176
D45: Total Cost: | E45: =SUM(E2:E44) -> 4297792.154
D46: Total Cost ($/sq m) | E46: =(E45/D2)*10.7639 -> 642.5139578
D47: $/TPD | E47: =E45/(600*'MRF Labor Requirements'!B20) -> 32.55903147

Sheet MRF Labor Requirements
A1: Employee Categories | B1: Capacity (TPD)
B2: 10 | C2: 100 | D2: 500
A3: Manager | B3: 1 | C3: 1 | D3: 1
A4: Foreman/Operator | B4: 1 | C4: 1.5 | D4: 3.5
A5: Sorters | B5: 1.5 | C5: 19 | D5: 70
A6: Maintenance | B6: 1 | C6: 1.5 | D6: 4
A7: other (rolling stock operators, clean up staff etc) | B7: 0 | C7: 4.5 | D7: 11
A8: Administrative (scale monitors, book keepers) | B8: 0 | C8: 1.5 | D8: 2.5
A9: Total Number of Employees | B9: =SUM(B3:B8) -> 4.5 | C9: =SUM(C3:C8) -> 29 | D9: 92
A11: Employee Categories | B11: Labor Costs
A12: Manager | B12: 25
A13: Foreman/Operator | B13: 40
A14: Sorters | B14: 12
A15: Maintenance | B15: 15
A16: other (rolling stock operators, clean up staff etc) | B16: 12
A17: Administrative (scale monitors, book keepers) | B17: 15
A19: Working Assumptions | B19: Days/Hours
A20: Number of working days per year | B20: 220
A21: Length of working day | B21: 12
A22: Number of shifts per day | B22: 2
A24: Employee Categories | B24: Marginal Worker Per Tonne | C24: Labor Required | D24: # of Hours Worked | E24: Total Hours Per Day | F24: Total Labor Costs Per Day | G24: Labor Costs Per Year
A25: Marginal Manager Per Tonne | B25: 1 | C25: 1 | D25: 7.5 | E25: =D25*C25 -> 7.5 | F25: =E25*B12 -> 187.5 | G25: =F25*$B$20 -> 41250
A26: Marginal Foreman/Operator Per Tonne | B26: =0.00555555555555556 -> 0.005555555556 | C26: =ROUNDUP(B26*(InputOutput!$B$2/'MRF Labor Requirements'!$B$20)+Sheet1!B3,0) -> 2 | D26: 7.5 | E26: =D26*C26 -> 15 | F26: =E26*B13 -> 600 | G26: =F26*$B$20 -> 132000
A27: Marginal Sorter Per Tonne | B27: =0.194444444444444 -> 0.1944444444 | C27: =ROUNDUP(B27*(InputOutput!$B$2/'MRF Labor Requirements'!$B$20)+Sheet1!B4,0) -> 26 | D27: 7.5 | E27: 195 | F27: 2340 | G27: 514800
A28: Marginal Maintenance Per Tonne | B28: =0.00555555555555556 -> 0.005555555556 | C28: =ROUNDUP(B28*(InputOutput!$B$2/'MRF Labor Requirements'!$B$20)+Sheet1!B5,0) -> 2 | D28: 7.5 | E28: 15 | F28: 225 | G28: 49500
A29: Marginal other (rolling stock operators, clean up staff etc) | B29: 0.05 | C29: =ROUNDUP(B29*(InputOutput!$B$2/'MRF Labor Requirements'!$B$20)+Sheet1!B6,0) -> 7 | D29: 7.5 | E29: 52.5 | F29: 630 | G29: 138600
A30: Marginal Administrative (scale monitors, book keepers) | B30: 0.01666666667 | C30: =ROUNDUP(B30*(InputOutput!$B$2/'MRF Labor Requirements'!$B$20)+Sheet1!B7,0) -> 3 | D30: 7.5 | E30: 22.5 | F30: 337.5 | G30: 74250
B32: Manager | C32: Foreman/Operator | D32: Sorters | E32: Maintenance | F32: other (rolling stock operators, clean up staff etc) | G32: Administrative (scale monitors, book keepers)
A33: 10 | B33: 1 | C33: 1 | D33: 1.5 | E33: 1 | F33: 0 | G33: 0
A34: 100 | B34: 1 | C34: 1.5 | D34: 19 | E34: 1.5 | F34: 4.5 | G34: 1.5
A35: 500 | B35: 1 | C35: 3.5 | D35: 55 | E35: 4 | F35: 11 | G35: 2.5
A36: WA TPD | B36: 1 | C36: =ROUNDUP(SUMPRODUCT(C33:C35,$A$33:$A$35)/SUM($A$33:$A$35),0) -> 4 | D36: =ROUNDUP(SUMPRODUCT(D33:D35,$A$33:$A$35)/SUM($A$33:$A$35),0) -> 49 | E36: =ROUNDUP(SUMPRODUCT(E33:E35,$A$33:$A$35)/SUM($A$33:$A$35),0) -> 4 | F36: =ROUNDUP(SUMPRODUCT(F33:F35,$A$33:$A$35)/SUM($A$33:$A$35),0) -> 10 | G36: =ROUNDUP(SUMPRODUCT(G33:G35,$A$33:$A$35)/SUM($A$33:$A$35),0) -> 3

Sheet Equpment Costs
A1: Material | B1: 50/TPD | C1: 1/TPD | D1: Fixed Cost
A2: Conveyor Belt (Paper Fibers) | B2: =D2/50 -> 5670 | C2: =B2/50 -> 113.4 | D2: 283500
A3: Conveyor Belt (Containers) | B3: =D3/50 -> 8910 | C3: =B3/50 -> 178.2 | D3: 445500
A4: Feed Line | B4: 4050 | C4: 81 | D4: 202500
A5: Magnet | B5: 810 | C5: 16.2 | D5: 40500
A6: Eddy Current | B6: 5184 | C6: 103.68 | D6: 259200
A7: Dual Eject Optical Sorter | B7: 16200 | C7: 324 | D7: 810000
A8: Trommel | B8: 1490.4 | C8: 29.808 | D8: 74520
A9: Vibrating Screen | B9: 0 | C9: 0 | D9: 0
A10: Air Knife | B10: 0 | C10: 0 | D10: 0
A11: Ballistic Seperator | B11: 4860 | C11: 97.2 | D11: 243000
A12: Vertical Baler | B12: 2430 | C12: 48.6 | D12: 121500
A13: 2 Ram Baler | B13: 3240 | C13: 64.8 | D13: 162000
A14: 1 Ram Baler | B14: 7290 | C14: 145.8 | D14: 364500
A15: Plastic Granulator | B15: 0 | C15: 0 | D15: 0
A16: Glass Crusher | B16: 4860 | C16: 97.2 | D16: 243000
A17: Cost of Bins | B17: 972 | C17: 19.44 | D17: 48600
A18: Rolling Stock | B18: 2106 | C18: 42.12 | D18: 105300
A19: Installation | B19: 6520 | C19: 130.4 | D19: 326000
A20: Average Equipment $/TPD | C20: =AVERAGE(C2:C19) -> 82.88044444

Sheet Model Ranges (hidden)
A1: Single
A2: Dual
A4: 1
A5: 2

Sheet Lookup Matrix
B1: Single Stream Small | C1: Dual Stream Small | D1: Single Stream Medium | E1: Dual Stream Medium | F1: Single Stream Large | G1: Dual Stream Large
A2: Single vs Dual Stream | B2: 1 | C2: 2 | D2: 1 | E2: 2 | F2: 1 | G2: 2
B3: 22324 | C3: 10492 | D3: 52088 | E3: 22324 | F3: 104177 | G3: 65482
A4: Tonnes TPD | B4: =B3/'MRF Labor Requirements'!$B$20 -> 101.4727273 | C4: =C3/'MRF Labor Requirements'!$B$20 -> 47.69090909 | D4: =D3/'MRF Labor Requirements'!$B$20 -> 236.7636364 | E4: =E3/'MRF Labor Requirements'!$B$20 -> 101.4727273 | F4: =F3/'MRF Labor Requirements'!$B$20 -> 473.5318182 | G4: =G3/'MRF Labor Requirements'!$B$20 -> 297.6454545
A5: Tonnes Threshold | B5: 20000 | C5: 10000 | D5: 50000 | E5: 20000 | F5: 105000 | G5: 65000
A6: Building Cost TPD | B6: 345057.801 | C6: 189781.7905 | D6: 431322.2512 | E6: 345057.801 | F6: 905776.7276 | G6: 534839.5915 | M6: =PMT(InputOutput!M20/12,InputOutput!M17,-5168000,0) ->  | N6: =PMT(InputOutput!M20/12,InputOutput!M17,-2842400,0) ->  | O6: =PMT(InputOutput!M20/12,InputOutput!M17,-6460000,0) ->  | P6: =PMT(InputOutput!M20/12,InputOutput!M17,-5168000,0) ->  | Q6: =PMT(InputOutput!M20/12,InputOutput!M17,-13566000,0) ->  | R6: =PMT(InputOutput!M20/12,InputOutput!M17,-8010400,0) -> 
A7: Equipment Cost TPD | B7: 531971.389 | C7: 313735.4989 | D7: 1277986.95 | E7: 429514.542 | F7: 2271293.324 | G7: 808923.6292 | M7: =PMT(InputOutput!M20/12,InputOutput!M18,-4050000,0) ->  | N7: =PMT(InputOutput!M20/12,InputOutput!M18,-2400000,0) ->  | O7: =PMT(InputOutput!M20/12,InputOutput!M18,-9300000,0) ->  | P7: =PMT(InputOutput!M20/12,InputOutput!M18,-3250000,0) ->  | Q7: =PMT(InputOutput!M20/12,InputOutput!M18,-17600000,0) ->  | R7: =PMT(InputOutput!M20/12,InputOutput!M18,-6750000,0) -> 
A8: Rolling Stock TPD | B8: 27819.81 | C8: 27686.83594 | D8: 51361.38325 | E8: 43632.72847 | F8: 90840.80844 | G8: 50017.3343 | M8: =PMT(InputOutput!M20/12,InputOutput!M19,-170000,0) ->  | N8: =PMT(InputOutput!M20/12,InputOutput!M19,-170000,0) ->  | O8: =PMT(InputOutput!M20/12,InputOutput!M19,-300000,0) ->  | P8: =PMT(InputOutput!M20/12,InputOutput!M19,-265000,0) ->  | Q8: =PMT(InputOutput!M20/12,InputOutput!M19,-565000,0) ->  | R8: =PMT(InputOutput!M20/12,InputOutput!M19,-335000,0) -> 
A9: Labor Cost TPD
A10: Annual Building OM Cost | B10: 79653 | C10: 79653 | D10: 123462 | E10: 79653 | F10: 209089 | G10: 99566 | M10: 267539.2986 | N10: 147146.6143 | O10: 334424.1233 | P10: 267539.2986 | Q10: 702290.6589 | R10: 414685.9129
A11: Building Insurance Cost TPD | B11: 10000 | C11: 8000 | D11: 20000 | E11: 10000 | F11: 30000 | G11: 30000 | M11: 412462.0626 | N11: 244421.963 | O11: 947135.1066 | P11: 330988.0749 | Q11: 1792427.729 | R11: 687436.771
A12: Taxes TPD | B12: 152108 | C12: 83660 | D12: 235768 | E12: 152108 | F12: 399284 | G12: 190135 | M12: 21569.98751 | N12: 21569.98751 | O12: 38064.68384 | P12: 33623.80406 | Q12: 71688.48789 | R12: 42505.56362
A13: Residual Disposal Cost TPD | B13: 125012 | C13: 117511 | D13: 291694 | E13: 125012 | F13: 583389 | G13: 366701 | M13: =SUM(M10:M12) -> 701571.3487 | N13: =SUM(N10:N12) -> 413138.5648 | O13: 1319623.914 | P13: 632151.1776 | Q13: 2566406.876 | R13: 1144628.247
M14: 904849 | N14: 530297 | O14: 1780593 | P14: 820326 | Q14: 3252049 | R14: 1346912
A15: Tonnes Threshold | B15: 20000 | C15: 10000 | D15: 50000 | E15: 20000 | F15: 105000 | G15: 65000 | M15: =M14/M13 -> 1.289746227 | N15: =N14/N13 -> 1.283581455 | O15: 1.34931853 | P15: 1.297673767 | Q15: 1.267160337 | R15: 1.176724411
A16: Building Cost TPD | B16: =B6/B$3 -> 15.45680886 | C16: 18.08823776 | D16: =D6/D$3 -> 8.280645278 | E16: 15.45680886 | F16: 8.694594081 | G16: =G6/G$3 -> 8.167734516
A17: Equipment Cost TPD | B17: 23.82957306 | C17: 29.90235407 | D17: =D7/D$3 -> 24.53515109 | E17: 19.24003503 | F17: 21.80225313 | G17: =G7/G$3 -> 12.35337389 | M17: =M10*$M$15 -> 345057.801 | N17: =N10*$M$15 -> 189781.7905 | O17: 431322.2512 | P17: 345057.801 | Q17: 905776.7276 | R17: 534839.5915
A18: Rolling Stock TPD | B18: 1.246183928 | C18: 2.638852073 | D18: 0.9860502084 | E18: 1.954521075 | F18: 0.8719852601 | G18: =G8/G$3 -> 0.7638333328 | M18: =M11*M15 -> 531971.389 | N18: =N11*N15 -> 313735.4989 | O18: 1277986.95 | P18: 429514.542 | Q18: 2271293.324 | R18: 808923.6292
A19: Labor Cost TPD | M19: =M12*M15 -> 27819.81 | N19: =N12*N15 -> 27686.83594 | O19: 51361.38325 | P19: 43632.72847 | Q19: 90840.80844 | R19: 50017.3343
A20: Annual Building OM Cost | B20: =B10/$B$3 -> 3.568043361 | C20: =C10/$B$3 -> 3.568043361 | D20: 5.530460491 | E20: 3.568043361 | F20: 9.366108224 | G20: 4.460043003
A21: Building Insurance Cost TPD | B21: =B11/B$3 -> 0.4479483963 | C21: 0.7624857034 | D21: 0.3839655967 | E21: 0.4479483963 | F21: 0.2879714332 | G21: 0.4581411686
A22: Taxes TPD | B22: 6.813653467 | C22: 7.973694243 | D22: 4.52634004 | E22: 6.813653467 | F22: 3.832746192 | G22: 2.90362237
A23: Residual Disposal Cost TPD | B23: 5.599892492 | C23: 11.20005719 | D23: 5.600023038 | E23: 5.599892492 | F23: 5.599978882 | G23: 5.600027488
A24: Total TPD | B24: =SUM(B16:B23) -> 56.96210357 | C24: =SUM(C16:C23) -> 74.13372439 | D24: 49.84263575 | E24: 53.08090268 | F24: 50.4556372 | G24: 34.70677577
B27: Single Stream Small | C27: Dual Stream Small | D27: Single Stream Medium | E27: Dual Stream Medium | F27: Single Stream Large | G27: Dual Stream Large
A28: Single vs Dual Stream | B28: 1 | C28: 2 | D28: 1 | E28: 2 | F28: 1 | G28: 2
B29: 22324 | C29: 10492 | D29: 52088 | E29: 22324 | F29: 104177 | G29: 65482
A30: Tonnes TPD | B30: =B29/'MRF Labor Requirements'!$B$20 -> 101.4727273 | C30: =C29/'MRF Labor Requirements'!$B$20 -> 47.69090909 | D30: =D29/'MRF Labor Requirements'!$B$20 -> 236.7636364 | E30: =E29/'MRF Labor Requirements'!$B$20 -> 101.4727273 | F30: =F29/'MRF Labor Requirements'!$B$20 -> 473.5318182 | G30: =G29/'MRF Labor Requirements'!$B$20 -> 297.6454545
A31: Tonnes Threshold | B31: 20000 | C31: 10000 | D31: 50000 | E31: 20000 | F31: 105000 | G31: 65000
A32: Building Cost TPD | B32: 5168000 | C32: 2842400 | D32: 6460000 | E32: 5168000 | F32: 13566000 | G32: 8010400
A33: Equipment Cost TPD | B33: 4050000 | C33: 2400000 | D33: 9300000 | E33: 3250000 | F33: 17600000 | G33: 6750000
A34: Rolling Stock TPD | B34: 170000 | C34: 170000 | D34: 300000 | E34: 265000 | F34: 565000 | G34: 335000
A35: Labor Cost TPD
A36: Building Insurance Cost TPD | B36: 10000 | C36: 8000 | D36: 20000 | E36: 10000 | F36: 30000 | G36: 30000
A37: Taxes TPD | B37: 152108 | C37: 83660 | D37: 235768 | E37: 152108 | F37: 399284 | G37: 190135
A38: Residual Disposal Cost TPD | B38: 125012 | C38: 117511 | D38: 291694 | E38: 125012 | F38: 583389 | G38: 366701

Sheet Sheet1 (hidden)
B1: 10 | C1: 100 | D1: 500
A2: Manager | B2: 1 | C2: 1 | D2: 1
A3: Foreman/Operator | B3: 1 | C3: 1.5 | D3: 3.5
A4: Sorters | B4: 1.5 | C4: 19 | D4: 70
A5: Maintenance | B5: 1 | C5: 1.5 | D5: 4
A6: other (rolling stock operators, clean up staff etc) | B6: 0 | C6: 4.5 | D6: 11
A7: Administrative (scale monitors, book keepers) | B7: 0 | C7: 1.5 | D7: 2.5
A8: Total Number of Employees | B8: =SUM(B2:B7) -> 4.5 | C8: =SUM(C2:C7) -> 29 | D8: 92
A11: Marginal Manager Per Tonne | B11: 0
A12: Marginal Foreman/Operator Per Tonne | B12: =(C3-B3)/90 -> 0.005555555556
A13: Marginal Sorter Per Tonne | B13: =(C4-B4)/90 -> 0.1944444444
A14: Marginal Maintenance Per Tonne | B14: =(C5-B5)/90 -> 0.005555555556
A15: Marginal other (rolling stock operators, clean up staff etc) | B15: 0.05
A16: Marginal Administrative (scale monitors, book keepers) | B16: 0.01666666667
A21: Dual Stream Small | B21: Picture 1
A22: Dual Stream Medium | B22: Picture 2
A23: Dual Stream Large | B23: Picture 3
A24: Single Stream Small | B24: Picture 4
A25: Single Stream Medium | B25: Picture 5
A26: Single Stream Large | B26: Picture 6
A28: Single | B28: Picture 8
A29: Dual | B29: Picture 7

Sheet Sheet2 (hidden)
A1: Trommel: A trommel is used to remove grit and broken glass from recyclables before they enter the sorting room
A3: Balers: Recycling balers are used to compact recyclables such as aluminum, cardboard, paper, and plastic into blocks which can easily be stacked and transported. The blocks of recyclables that come
A4: into blocks which can easily be stacked and transported. The blocks of recyclables that come out of balers vary in size and weight depending on how big of a baler you have. There are many
A5: different kinds of balers, but balers used specifically for recyclables are usually called “vertical” balers.
A7: Eddy Current: Electric currents induced within conductors by a changing magnetic field in the conductor. Allows for separation of aluminum products in a recycling facility
A9: Ferrous Magnet: Magnet used to separate out ferrous metals (i.e. steel) in a material recovery facility

Sheet Cost Curves Single Stream (hidden)
A1: 5000 | B1: 138.1421036 | E1: 5000 | F1: 155.3137244
A2: 15000 | B2: 100.1921036 | E2: 15000 | F2: 96.31090268
A3: 25000 | B3: 84.49263575 | E3: 25000 | F3: 87.73090268
A4: 35000 | B4: 81.52263575 | E4: 35000 | F4: 84.76090268
A5: 45000 | B5: 82.33 | E5: 45000 | F5: 85.56756935
A6: 55000 | B6: 80.83263575 | E6: 55000 | F6: 84.07090268
A7: 65000 | B7: 79.11109728 | E7: 65000 | F7: 63.97523731
A8: 75000 | B8: 78.70663575 | E8: 75000 | F8: 63.57077577
A9: 85000 | B9: 79.23204751 | E9: 85000 | F9: 64.09618754
A10: 95000 | B10: 78.69158311 | E10: 95000 | F10: 63.55572314
A11: 105000 | B11: 78.29487455 | E11: 105000 | F11: 62.88249006
A12: 115000 | B12: 78.46259372 | E12: 115000 | F12: 62.71373229
A13: 125000 | B13: 78.7300372 | E13: 125000 | F13: 62.98117577
A14: 135000 | B14: 78.43230387 | E14: 135000 | F14: 62.68344244
A15: 145000 | B15: 77.92 | E15: 145000 | F15: 62.25608612
A16: 155000 | B16: 78.2756372 | E16: 155000 | F16: 62.1712919
A17: 165000 | B17: 78.07192291 | E17: 165000 | F17: 62.52677577
A18: 175000 | B18: 77.99725882 | E18: 175000 | F18: 62.32306148
A19: 185000 | B19: 77.60025258 | E19: 185000 | F19: 62.24839739
A20: 195000 | B20: 78.0931372 | E20: 195000 | F20: 61.85139115
A21: 205000 | B21: 77.90197866 | E21: 205000 | F21: 62.15311723
A23: =MIN(B1:B21) -> 77.60025258 | F23: =MIN(F1:F21) -> 61.85139115
